bitfinex/quotes_ETHUSD_20260312
["timestamp","ask_amount","ask_price","bid_price","bid_amount"]
[1773346317276,1.558,2067.5,2067.2,0.04837461]
[1773346317769,2.02386983,2067.6,2067.1,1.20942383]
[1773346318072,0.46486983,2067.5,2067.1,1.20942383]
[1773346318973,0.46486983,2067.5,2066.9,1.37829541]
[1773346319185,1.559,2067.6,2067.0,0.16875456]
[1773346319465,1.68603925,2067.7,2067.0,0.16875456]
[1773346319466,2.03796354,2067.7,2067.0,0.16875456]
[1773346319683,0.01209371,2067.7,2067.3,0.16875408]
[1773346320734,1.56,2068.0,2067.3,0.15665989]
[1773346320935,1.56,2068.0,2067.4,1.20924833]
[1773346321138,1.56,2068.0,2067.5,0.15665989]
[1773346322371,0.002,2067.7,2067.5,0.15665989]
[1773346323270,0.002,2067.7,2067.6,1.20913136]
[1773346323564,0.002,2067.7,2067.6,1.36578987]
[1773346326069,0.002,2067.7,2067.4,1.38068817]
[1773346326453,0.46486983,2068.1,2067.5,0.1704967]
[1773346327338,1.67371478,2068.1,2067.5,0.1704967]
[1773346327539,1.67371478,2068.1,2067.6,1.20913136]
[1773346328072,0.46486983,2068.1,2067.6,1.20913136]
[1773346328371,1.67371301,2068.1,2067.6,1.20913136]
[1773346329166,0.46486983,2068.1,2067.6,1.20913136]
[1773346329374,1.67371782,2068.1,2067.6,1.20913136]
[1773346329548,1.67371797,2068.1,2067.6,0.1684954]
[1773346330169,0.46486983,2068.1,2067.6,0.1684954]
[1773346330370,1.6737192,2068.1,2067.6,0.1684954]
[1773346330771,0.0140907,2068.2,2067.6,0.1684954]
[1773346330961,0.0140907,2068.2,2067.7,0.16849498]
[1773346331394,0.47896053,2068.2,2067.7,0.16849498]
[1773346332653,0.47896053,2068.2,2067.9,1.20895594]
[1773346332970,0.0140907,2068.2,2067.9,1.20895594]
[1773346333775,0.47896053,2068.2,2067.9,1.20895594]
[1773346335197,1.564,2068.4,2067.9,1.20895594]
[1773346335198,0.002,2068.4,2068.0,0.16849334]
[1773346335483,0.46686983,2068.4,2068.0,0.16849334]
[1773346335683,0.46686983,2068.4,2067.9,1.20895594]
[1773346336875,0.002,2068.2,2067.9,1.20895594]
[1773346339187,0.46486983,2068.1,2067.8,0.001]
[1773346339557,0.46486983,2068.1,2067.5,0.001]
[1773346339988,0.46486983,2067.9,2067.5,1.21016771]
[1773346340981,2.77479075,2068.2,2067.5,1.21016771]
[1773346340982,0.46965416,2068.1,2067.6,0.02418241]
[1773346341378,1.67853105,2068.1,2067.6,1.23326352]
[1773346341688,0.46965416,2068.0,2067.6,1.23326352]
[1773346343690,1.67855174,2068.0,2067.6,1.23326352]
[1773346343908,0.46965416,2068.0,2067.6,1.23326352]
[1773346344396,1.67855192,2068.0,2067.6,1.23326352]
[1773346344895,0.46965416,2068.0,2067.6,1.23326352]
[1773346346086,0.46965416,2067.9,2067.6,1.20911251]
[1773346348693,2.03465416,2068.1,2067.5,0.16948783]
[1773346348905,0.0140907,2068.2,2067.6,0.16848783]
[1773346350125,0.48374486,2068.2,2067.8,0.001]
[1773346350479,0.002,2068.0,2067.8,0.001]
[1773346351472,0.47165416,2068.0,2067.8,0.001]
[1773346360805,0.47165416,2068.0,2067.8,2.651]
[1773346361526,0.002,2068.0,2067.9,0.16848377]
[1773346361722,0.002,2068.0,2067.9,1.37743971]
[1773346361925,0.002,2068.0,2067.9,1.20895594]
[1773346362930,0.45514973,2068.0,2067.8,1.20997226]
[1773346363131,0.45514973,2068.0,2067.8,1.21000651]
[1773346363613,0.45514973,2068.0,2067.9,0.001]
[1773346364726,1.66404721,2068.0,2067.9,0.001]
[1773346364924,0.45514973,2068.0,2067.9,0.001]
[1773346366127,1.66404721,2068.0,2067.9,0.001]
[1773346366444,0.45314973,2067.9,2067.8,0.001]
[1773346368332,0.45314973,2067.9,2067.5,0.001]
[1773346368333,0.45314973,2067.8,2067.5,0.001]
[1773346368713,1.565,2067.7,2067.5,0.001]
[1773346369028,2.01814973,2067.7,2067.5,0.001]
[1773346369230,0.45314973,2067.6,2067.5,0.001]
[1773346369432,0.45314973,2067.9,2067.5,0.1704813]
[1773346369729,1.66210656,2067.9,2067.5,0.1704813]
[1773346371633,0.47546592,2067.8,2067.5,1.21017811]
[1773346372600,0.47546592,2067.8,2067.5,0.001]
[1773346372811,0.47546592,2067.8,2067.5,1.2101893]
[1773346373119,0.47546592,2067.8,2067.5,0.001]
[1773346373339,0.47546592,2067.8,2067.5,1.21018513]
[1773346374936,0.47546592,2067.8,2067.5,0.001]
[1773346375138,1.68448313,2067.8,2067.5,0.001]
[1773346375646,0.47546592,2067.7,2067.5,0.001]
[1773346378544,0.002,2067.6,2067.5,0.001]
[1773346379942,0.47746592,2067.6,2067.5,0.001]
[1773346381553,1.68659728,2067.6,2067.5,0.001]
[1773346381722,0.47546592,2067.5,2067.2,0.01209372]
[1773346382450,0.47546592,2067.5,2067.2,1.22144653]
[1773346382765,0.47546592,2067.5,2067.2,0.01209372]
[1773346382932,0.47546592,2067.5,2067.2,1.2214443]
[1773346385044,0.47546592,2067.5,2067.2,0.01209372]
[1773346385226,0.47546592,2067.4,2067.2,0.01209372]
[1773346387245,0.47546592,2067.3,2067.2,0.01209372]
[1773346392750,0.47746592,2067.3,2067.2,0.01209372]
[1773346393153,1.68677274,2067.3,2067.2,1e-08]
[1773346394158,1.68677274,2067.3,2067.1,0.001]
[1773346394159,0.47546592,2067.2,2066.7,1.22170669]
[1773346394334,0.47546592,2067.2,2066.8,0.00100001]
[1773346395971,0.002,2067.5,2067.2,0.17047524]
[1773346396259,1.68665866,2067.5,2067.2,0.17047524]
[1773346396465,0.47546592,2067.4,2067.2,0.00100001]
[1773346397638,1.21119419,2067.5,2067.2,0.00100001]
[1773346397847,0.002,2067.5,2067.2,0.17147487]
[1773346398036,0.002,2067.5,2067.2,1.38080601]
[1773346399047,0.47746592,2067.5,2067.2,1.38080601]
[1773346399563,0.47746592,2067.5,2067.2,1.379806]
[1773346400366,0.002,2067.6,2067.4,0.17047413]
[1773346400557,0.01209372,2067.7,2067.4,0.17047413]
[1773346400756,0.01209372,2067.7,2067.5,0.00100001]
[1773346401263,0.01209372,2067.7,2067.6,0.17047413]
[1773346401863,0.002,2067.8,2067.6,0.17047413]
[1773346403870,0.002,2067.8,2067.5,2.25057774]
[1773346404069,0.002,2067.8,2067.5,2.42105135]
[1773346406244,0.002,2067.6,2067.5,2.42105135]
[1773346406551,0.002,2067.8,2067.5,2.42105135]
[1773346408372,0.002,2067.8,2067.6,0.17047277]
[1773346408973,0.48365863,2067.7,2067.4,0.001]
[1773346409172,0.48365863,2067.7,2067.5,0.00100001]
[1773346409950,0.48365863,2067.7,2067.2,0.01209372]
[1773346410481,0.48365863,2067.5,2067.2,0.01209372]
[1773346410683,4.83652544,2067.7,2067.3,0.17147246]
[1773346410684,0.48365863,2067.7,2067.3,0.17147246]
[1773346411253,0.48365863,2067.7,2067.2,2.26182964]
[1773346411462,0.48365863,2067.7,2067.3,0.1714723]
[1773346411664,0.002,2067.8,2067.3,0.1714723]
[1773346411868,0.48565863,2067.8,2067.4,1.2119013]
[1773346412274,0.002,2067.8,2067.5,0.17147215]
[1773346412613,0.002,2068.1,2067.7,0.17147215]
[1773346412893,0.002,2068.3,2068.0,0.17147215]
[1773346413390,0.48565863,2068.3,2067.9,1.040429]
[1773346413564,0.48365863,2068.2,2067.6,1.21190099]
[1773346413764,0.002,2068.4,2068.2,0.17147199]
[1773346414007,0.01408767,2068.7,2068.2,0.17147199]
[1773346414008,0.01408767,2068.7,2068.3,0.17147199]
[1773346414178,0.01408767,2068.7,2068.4,1.21190099]
[1773346414351,1.22258549,2068.7,2068.2,1.21190084]
[1773346414555,1.70624412,2068.7,2068.2,2.42064108]
[1773346414966,0.48365863,2068.6,2068.0,1.38036748]
[1773346415183,0.48365863,2068.6,2067.8,1.38046003]
[1773346415357,0.48365863,2068.6,2067.6,5.00795326]
[1773346415358,0.48365863,2068.4,2067.6,5.00795326]
[1773346415564,0.48365863,2068.4,2067.6,1.38055875]
[1773346416092,0.48365863,2068.4,2067.7,0.17147169]
[1773346416385,0.48365863,2068.6,2067.7,0.17147169]
[1773346416762,0.48365863,2068.4,2067.8,1.38048595]
[1773346417382,0.48365863,2068.4,2067.7,4.83605764]
[1773346417383,0.48365863,2068.4,2067.6,7.6071468]
[1773346417890,0.48365863,2068.4,2067.7,0.0120907]
[1773346418787,1.20872213,2068.3,2067.8,1.20901441]
[1773346419090,0.48365863,2068.2,2067.8,1.21001441]
[1773346423087,0.46314828,2068.4,2067.9,0.17147054]
[1773346424385,1.67184256,2068.4,2067.9,1.38036876]
[1773346424593,0.46314828,2068.3,2067.9,1.20889822]
[1773346424969,0.46314828,2068.3,2067.9,1.38036849]
[1773346425505,0.46314828,2068.3,2067.8,4.83689622]
[1773346425506,0.46314828,2068.3,2067.8,1.20996692]
[1773346425793,0.46314828,2068.3,2067.8,0.001]
[1773346426164,0.46314828,2068.3,2067.8,1.21000852]
[1773346426360,0.46314828,2068.3,2067.8,1.38147853]
[1773346426566,1.67187722,2068.3,2067.8,1.38147853]
[1773346426903,0.46314828,2068.2,2067.8,1.38147853]
[1773346428272,0.46314828,2068.2,2067.8,1.21000852]
[1773346428273,1.67194316,2068.2,2067.8,1.21000852]
[1773346428468,0.46314828,2068.1,2067.8,1.21000852]
[1773346428676,0.46314828,2068.1,2067.8,0.001]
[1773346429799,0.46314828,2068.1,2067.8,2.651]
[1773346430510,1.67201885,2068.1,2067.8,2.651]
[1773346431018,0.45459018,2068.0,2067.8,2.651]
[1773346432005,0.45459018,2068.0,2067.8,0.001]
[1773346432946,1.20895594,2067.9,2067.8,0.001]
[1773346433092,0.45459018,2067.8,2067.7,1e-08]
[1773346433296,0.45459018,2067.8,2067.3,1.21030006]
[1773346433517,0.45459018,2067.8,2067.3,0.001]
[1773346435197,0.5000052,2067.6,2067.3,0.001]
[1773346438333,0.5000052,2067.5,2067.3,0.001]
[1773346439726,0.5000052,2067.7,2067.3,0.001]
[1773346440443,2.79801855,2067.8,2067.3,0.001]
[1773346440736,1.589,2067.8,2067.3,0.001]
[1773346441045,2.0890052,2068.1,2067.4,1.0403162]
[1773346441337,2.0890052,2068.1,2067.3,0.001]
[1773346441509,0.5000052,2068.0,2067.3,0.001]
[1773346442639,1.70890608,2068.0,2067.3,0.001]
[1773346443841,1.70890608,2068.0,2067.5,0.001]
[1773346444649,0.5000052,2067.9,2067.5,0.001]
[1773346446417,2.0910052,2067.9,2067.5,0.001]
[1773346446641,3.29996476,2067.9,2067.5,0.001]
[1773346447446,2.0910052,2067.9,2067.5,0.001]
[1773346447649,4.83548611,2068.1,2067.5,0.001]
[1773346447650,1.70888099,2068.1,2067.5,0.001]
[1773346447825,2.0920052,2068.1,2067.5,0.001]
[1773346448232,3.30085858,2068.1,2067.5,0.001]
[1773346448845,0.5000052,2068.0,2067.5,0.001]
[1773346452844,1.70890418,2068.0,2067.5,0.001]
[1773346453247,0.5000052,2068.0,2067.5,0.001]
[1773346454337,1.70890848,2068.0,2067.5,0.001]
[1773346454758,0.5000052,2067.9,2067.5,0.001]
[1773346455628,0.5000052,2067.9,2067.7,0.001]
[1773346455849,0.002,2067.8,2067.7,0.001]
[1773346457157,0.5020052,2067.8,2067.7,0.001]
[1773346459255,0.002,2067.8,2067.7,0.001]
[1773346459929,0.002,2068.0,2067.7,0.001]
[1773346463068,0.5020052,2068.0,2067.7,0.001]
[1773346463757,0.5000052,2067.9,2067.7,0.001]
[1773346466966,0.002,2068.0,2067.7,0.001]
[1773346467375,0.5020052,2068.0,2067.7,0.001]
[1773346468577,0.5000052,2067.9,2067.7,0.001]
[1773346470380,0.5020052,2067.9,2067.7,0.001]
[1773346471249,0.002,2067.9,2067.7,0.001]
[1773346474592,0.002,2068.0,2067.7,0.001]
[1773346474979,0.002,2068.0,2067.7,1.04081626]
[1773346476702,0.002,2068.0,2067.7,3.69081626]
[1773346477810,0.002,2068.0,2067.8,1.20901441]
[1773346478785,0.0140907,2068.2,2067.8,1.20901441]
[1773346479179,0.5140959,2068.2,2067.8,1.20901441]
[1773346481719,1.72292852,2068.2,2067.7,1.21004316]
[1773346481923,0.5000052,2068.1,2067.7,1.21004316]
[1773346482420,0.5000052,2068.1,2067.7,0.001]
[1773346483599,0.002,2068.0,2067.9,0.001]
[1773346483908,0.5020052,2068.0,2067.9,0.001]
[1773346487708,1.71090268,2068.0,2067.9,0.001]
[1773346488622,1.71090268,2068.0,2067.7,0.001]
[1773346488623,0.4995052,2067.9,2067.7,0.001]
[1773346494037,0.002,2068.0,2067.7,0.00199456]
[1773346494245,0.5015052,2068.0,2067.7,0.00199456]
[1773346495827,0.5015052,2068.0,2067.9,0.001]
[1773346498544,1.22288966,2068.2,2068.0,0.2731717]
[1773346498545,0.0140907,2068.2,2068.0,0.2731717]
[1773346499439,0.50147919,2068.2,2067.9,0.27417165]
[1773346500142,0.0140907,2068.2,2067.9,0.27417165]
[1773346500749,0.0140907,2068.2,2068.0,1.20889748]
[1773346501042,0.0140907,2068.2,2068.0,1.48206907]
[1773346501343,0.0140907,2068.2,2068.0,0.27317159]
[1773346503552,0.50147919,2068.2,2067.9,0.001]
[1773346503852,0.48738849,2068.1,2067.9,0.001]
[1773346507673,0.00418849,2068.1,2067.9,0.001]
[1773346507986,1.69628597,2068.0,2067.9,0.001]
[1773346508280,0.48738849,2067.9,2067.5,0.49074797]
[1773346508448,0.48738849,2067.9,2067.4,1.21022585]
[1773346508770,0.48738849,2067.9,2067.5,0.49074797]
[1773346508975,0.48738849,2068.1,2067.5,0.49074797]
[1773346509168,0.002,2067.9,2067.6,0.49074797]
[1773346509479,1.22287318,2068.2,2067.6,0.49074797]
[1773346509480,0.0140907,2068.2,2067.8,0.49074797]
[1773346509676,0.002,2068.1,2067.8,0.49074797]
[1773346510966,0.002,2068.1,2068.0,0.49074797]
[1773346511169,0.002,2068.4,2068.0,0.49074797]
[1773346511369,0.002,2068.4,2067.9,2.2487722]
[1773346511370,0.01408767,2068.7,2068.3,0.49074797]
[1773346511678,0.002,2068.6,2068.3,0.49074797]
[1773346512061,0.50147616,2068.7,2068.3,0.49074797]
[1773346512264,0.002,2068.6,2068.3,0.49074797]
[1773346513291,0.002,2068.6,2067.9,1.20895594]
[1773346513292,0.48738849,2068.6,2068.0,1.20889748]
[1773346513487,0.48738849,2068.4,2068.0,1.20889748]
[1773346515789,0.48738849,2068.4,2068.0,1.69964545]
[1773346516464,0.48738849,2068.4,2068.1,0.49074797]
[1773346516671,0.48938849,2068.5,2068.1,0.49074797]
[1773346517010,0.002,2068.5,2068.1,0.49074797]
[1773346517368,0.002,2068.5,2068.2,1.20878058]
[1773346518166,0.50147616,2068.7,2068.3,0.49074797]
[1773346518389,0.002,2068.5,2068.3,0.49074797]
[1773346519912,0.002,2068.5,2068.3,1.69942247]
[1773346521808,0.49649808,2068.5,2068.1,0.4524642]
[1773346522116,0.49449808,2068.4,2068.1,0.001]
[1773346522597,0.002,2068.5,2068.2,0.4514642]
[1773346524118,0.002,2068.5,2068.3,1.66018633]
[1773346525294,0.002,2068.5,2068.3,1.20872213]
[1773346525504,0.002,2068.5,2068.1,0.4524642]
[1773346525505,0.49849808,2068.5,2068.1,0.001]
[1773346525687,0.49449808,2068.3,2068.1,1.2098352]
[1773346525888,1.53349303,2068.3,2067.9,0.001]
[1773346526088,0.49449808,2068.0,2067.9,0.001]
[1773346528033,0.002,2068.5,2068.0,1.20889748]
[1773346528332,0.002,2068.5,2068.0,4.31036168]
[1773346528333,0.49649808,2068.5,2068.0,4.31036168]
[1773346529944,0.49649808,2068.5,2068.0,3.85889748]
[1773346530108,1.70516175,2068.5,2067.9,4.8366512]
[1773346530312,0.49449808,2068.4,2067.9,4.8366512]
[1773346532410,0.49449808,2068.4,2067.9,0.4524642]
[1773346534330,0.49449808,2068.4,2068.1,0.001]
[1773346535254,0.002,2068.3,2068.1,0.001]
[1773346536058,0.002,2068.3,2068.1,0.4524642]
[1773346536243,0.002,2068.3,2068.1,0.001]
[1773346537961,0.002,2068.3,2068.1,2.651]
[1773346538457,0.49649808,2068.3,2068.1,2.651]
[1773346538830,0.002,2068.3,2068.1,3.1024642]
[1773346539227,0.002,2068.3,2068.2,0.4514642]
[1773346539475,0.002,2068.5,2068.2,0.4514642]
[1773346541046,0.002,2068.5,2068.4,0.4514642]
[1773346541459,0.002,2068.5,2068.4,1.2086637]
[1773346542263,0.002,2068.5,2068.3,4.31014049]
[1773346543944,0.002,2068.5,2068.4,2.65]
[1773346545765,0.002,2068.5,2068.3,1.66014049]
[1773346548081,0.50502433,2068.7,2068.3,1.20867629]
[1773346548274,0.50502433,2068.7,2068.3,1.67453345]
[1773346548978,0.50502433,2068.7,2068.4,0.46585716]
[1773346549892,0.01408767,2068.7,2068.5,1.20860526]
[1773346550295,0.01408767,2068.7,2068.5,1.67446242]
[1773346556094,0.01408767,2068.7,2068.6,0.45436362]
[1773346557812,0.46691606,2068.6,2068.3,1.20872213]
[1773346557992,0.01408767,2068.7,2068.4,0.45436362]
[1773346559084,0.01408767,2068.7,2068.6,0.001]
[1773346559900,0.48100373,2068.7,2068.6,0.001]
[1773346561419,0.46691606,2068.6,2068.2,0.001]
[1773346561792,0.46691606,2068.6,2068.2,0.45536362]
[1773346565119,0.46691606,2068.6,2068.3,1.20872213]
[1773346566831,0.46691606,2068.6,2068.3,1.66308575]
[1773346567007,0.01408767,2068.7,2068.4,0.45436362]
[1773346567208,0.48100373,2068.7,2068.4,0.45436362]
[1773346567529,0.48100373,2068.7,2068.3,1.20872213]
[1773346568019,0.48100373,2068.7,2068.3,4.31308575]
[1773346569243,0.46691606,2068.6,2068.3,2.65]
[1773346569403,1.03894067,2068.6,2068.3,2.65]
[1773346569604,0.46691606,2068.5,2068.3,2.65]
[1773346571030,0.46691606,2068.5,2068.4,0.001]
[1773346571725,0.46891606,2068.5,2068.4,0.001]
[1773346573154,0.46891606,2068.5,2067.6,0.001]
[1773346573155,0.002,2068.5,2067.6,0.001]
[1773346573327,1.03894067,2067.8,2067.7,1e-08]
[1773346573512,0.46691606,2067.7,2067.6,0.001]
[1773346573713,0.46691606,2067.7,2067.2,0.46645734]
[1773346574016,2.05491606,2067.9,2067.3,0.45436362]
[1773346574215,0.46691606,2067.9,2067.3,0.45436362]
[1773346575427,0.46691606,2067.9,2067.5,0.45436362]
[1773346575627,1.67587389,2067.9,2067.5,0.45436362]
[1773346580865,1.67587389,2067.9,2067.5,1.66355142]
[1773346583048,1.67587389,2067.9,2067.5,1.66455142]
[1773346583249,0.002,2067.7,2067.5,1.66455142]
[1773346583448,0.47788561,2067.7,2067.3,0.001]
[1773346583648,0.47588561,2067.6,2067.3,0.001]
[1773346583951,0.47588561,2067.6,2067.2,0.01209372]
[1773346584350,0.47588561,2067.4,2067.2,0.01209372]
[1773346585853,3.27410302,2067.5,2067.2,0.01209372]
[1773346586059,0.002,2067.7,2067.3,0.46566791]
[1773346588370,0.002,2067.7,2067.4,1.67491624]
[1773346592268,0.002,2067.7,2067.5,0.46566791]
[1773346592899,0.002,2067.9,2067.6,0.46566791]
[1773346594179,0.002,2067.9,2067.6,1.67476615]
[1773346595072,0.47788561,2067.9,2067.6,1.67476615]
[1773346595277,0.47788561,2067.9,2067.6,1.20909824]
[1773346595870,0.002,2067.7,2067.6,1.20909824]
[1773346597268,0.002,2067.7,2067.6,1.67476615]
[1773346603499,0.30383264,2068.1,2067.7,0.46987081]
[1773346603679,0.0140907,2068.2,2067.7,0.46987081]
[1773346603871,1.22287776,2068.2,2067.7,0.46987081]
[1773346604605,1.52671039,2068.2,2067.7,0.46987081]
[1773346604773,1.52670963,2068.2,2067.7,0.46987081]
[1773346605798,1.52670963,2068.2,2067.9,0.46987081]
[1773346607778,0.002,2068.0,2067.9,0.46987081]
[1773346610306,0.002,2068.0,2067.9,1.67882675]
[1773346615518,0.002,2068.0,2067.9,0.46987081]
[1773346618397,0.002,2068.0,2067.9,1.67882675]
[1773346619123,0.002,2068.0,2067.9,0.46987081]
[1773346620123,0.002,2068.0,2067.9,0.47087081]
[1773346620330,0.0140907,2068.2,2068.0,0.46669392]
[1773346620505,0.002,2068.5,2068.1,0.46669392]
[1773346620822,0.002,2068.5,2068.0,0.46669392]
[1773346621235,0.002,2068.5,2068.2,0.46669392]
[1773346623408,0.002,2068.5,2068.4,0.46669392]
[1773346624020,0.002,2068.5,2068.3,1.20872213]
[1773346624212,0.002,2068.5,2068.3,1.67541605]
[1773346624433,0.30783235,2068.5,2068.0,0.46669392]
[1773346624641,0.30583235,2068.3,2067.9,1.67660132]
[1773346625226,0.30583235,2068.3,2068.0,0.46669392]
[1773346626448,0.30583235,2068.3,2068.0,1.67558566]
[1773346628655,1.51646773,2068.5,2068.1,0.46669392]
[1773346628959,1.51644031,2068.5,2068.1,0.46669392]
[1773346629476,1.51644355,2068.5,2068.1,0.46669392]
[1773346629764,0.3078323,2068.5,2068.1,0.46669392]
[1773346629950,0.002,2068.5,2068.1,0.46669392]
[1773346630639,0.30583228,2068.4,2068.1,1.20882108]
[1773346632231,0.30583228,2068.4,2068.2,0.001]
[1773346632961,0.002,2068.4,2068.2,0.46769392]
[1773346634633,0.30783224,2068.4,2068.2,0.001]
[1773346637385,0.002,2068.4,2068.2,0.001]
[1773346639503,1.2106637,2068.4,2068.2,0.001]
[1773346639776,0.30783218,2068.4,2068.2,0.001]
[1773346640882,0.002,2068.4,2068.2,0.48116562]
[1773346641564,0.002,2068.4,2068.2,1.68993457]
[1773346642285,0.002,2068.4,2068.3,0.48016562]
[1773346644186,0.002,2068.4,2068.3,1.68888775]
[1773346644377,0.002,2068.4,2068.3,0.48016562]
[1773346648992,0.002,2068.4,2068.2,0.001]
[1773346649160,0.002,2068.4,2068.2,0.48116562]
[1773346653152,0.002,2068.4,2068.1,0.48116562]
[1773346653358,0.45330936,2068.2,2067.9,0.001]
[1773346653675,0.45330936,2068.2,2067.7,0.0130907]
[1773346653676,0.45330936,2068.0,2067.7,0.0130907]
[1773346653983,0.45330936,2067.8,2067.5,0.48116562]
[1773346655560,0.45330936,2067.8,2067.5,1.69034677]
[1773346657470,0.45330936,2067.8,2067.7,0.001]
[1773346657873,0.45530936,2067.8,2067.7,0.001]
[1773346658394,1.21086544,2068.1,2067.8,0.48016562]
[1773346658562,1.6641748,2068.1,2067.8,0.48016562]
[1773346658764,1.6641748,2068.1,2067.7,0.001]
[1773346658765,0.45330936,2068.0,2067.7,0.001]
[1773346661090,0.002,2068.4,2068.0,0.48016562]
[1773346661391,4.84725137,2068.3,2068.0,0.48016562]
[1773346661596,5.30056073,2068.3,2068.0,0.48016562]
[1773346662164,4.84725137,2068.3,2068.0,0.48016562]
[1773346662890,0.49401702,2068.2,2067.9,0.4973831]
[1773346663564,5.34126839,2068.3,2067.9,0.4973831]
[1773346664371,6.54999471,2068.3,2067.9,0.4973831]
[1773346664894,6.54999297,2068.3,2067.9,1.70631697]
[1773346665294,5.34126839,2068.3,2067.9,1.70631697]
[1773346665804,6.54999271,2068.3,2067.9,1.70631697]
[1773346667407,0.49401702,2068.2,2067.9,1.70631697]
[1773346667589,6.54999271,2068.3,2067.9,1.70631697]
[1773346667790,4.84725137,2068.2,2067.9,1.70631697]
[1773346668195,5.34126839,2068.2,2067.9,0.4973831]
[1773346669694,1.7028014,2068.2,2067.9,0.4973831]
[1773346669898,0.002,2068.1,2067.9,0.4973831]
[1773346670403,4.84925137,2068.1,2067.9,1.20895477]
[1773346670597,4.84925137,2068.1,2068.0,0.47555049]
[1773346672474,4.84925137,2068.1,2067.9,1.20895477]
[1773346673004,4.84925137,2068.1,2067.9,1.68450526]
[1773346674619,4.84925137,2068.1,2067.9,1.20895477]
[1773346674822,4.84925137,2068.1,2067.9,1.68450526]
[1773346675722,5.31908276,2068.1,2067.9,1.20895477]
[1773346676822,5.31908276,2068.1,2067.8,1.68451464]
[1773346677808,0.46983139,2068.0,2067.7,1.69769289]
[1773346678628,0.46983139,2068.0,2067.7,0.0130907]
[1773346678629,5.31708276,2067.9,2067.7,0.0130907]
[1773346679414,4.84725137,2067.9,2067.7,0.48864119]
[1773346680125,4.84725137,2067.9,2067.5,0.001]
[1773346680126,0.46983139,2067.8,2067.5,0.001]
[1773346680326,0.46983139,2067.7,2067.5,0.001]
[1773346680524,0.46983139,2067.7,2067.3,0.001]
[1773346680525,0.46983139,2067.6,2067.3,0.001]
[1773346680820,5.31708276,2067.6,2067.3,0.001]
[1773346681021,5.31708276,2067.6,2067.2,0.01309372]
[1773346681022,0.46983139,2067.5,2067.2,0.01309372]
[1773346681794,0.46983139,2067.5,2067.2,1.22245851]
[1773346681994,1.20889748,2068.0,2067.3,0.47555049]
[1773346682226,1.606,2067.9,2067.3,0.47555049]
[1773346682410,0.46983139,2067.8,2067.3,0.47555049]
[1773346683227,0.46983139,2067.8,2067.5,0.001]
[1773346683409,4.84725137,2067.7,2067.5,0.47655049]
[1773346684224,4.84725137,2067.6,2067.5,0.47655049]
[1773346685210,0.47183139,2068.0,2067.6,0.47555049]
[1773346686011,0.002,2068.0,2067.6,0.47555049]
[1773346686206,0.46983139,2067.9,2067.5,1.21018984]
[1773346686607,1.21090006,2068.0,2067.0,0.001]
[1773346686608,10.3935755,2067.6,2067.0,0.001]
[1773346686839,0.46983139,2067.0,2066.7,0.01209674]
[1773346687003,0.46983139,2067.0,2066.7,0.01229674]
[1773346687811,0.46983139,2067.0,2066.7,1.22195106]
[1773346688334,0.46983139,2067.0,2066.7,1.22095106]
[1773346689054,3.07218722,2067.4,2066.8,0.47555049]
[1773346689208,0.46983139,2067.4,2066.8,0.47655049]
[1773346689407,0.46983139,2067.4,2067.0,0.47555049]
[1773346691247,0.46983139,2067.4,2067.0,1.68500272]
[1773346691610,0.0008,2067.2,2067.0,1.68500272]
[1773346692124,0.0008,2067.2,2067.1,0.001]
[1773346692508,0.0008,2067.2,2067.1,0.47655049]
[1773346694241,0.47063139,2067.2,2066.6,0.47555049]
[1773346694542,0.0008,2067.2,2066.7,0.47555049]
[1773346696017,0.0008,2067.2,2066.6,4.83871072]
[1773346696018,0.47063139,2067.2,2066.6,0.47555049]
[1773346696223,0.46983139,2067.1,2066.7,1.2096579]
[1773346696936,0.46983139,2067.1,2066.8,0.001]
[1773346699159,1.67929955,2067.1,2066.8,0.001]
[1773346699328,0.46983139,2067.1,2066.8,0.001]
[1773346700353,0.46983139,2067.1,2066.2,0.49581037]
[1773346700516,0.46983139,2067.1,2066.4,0.4837106]
[1773346700517,0.49368661,2067.1,2066.4,0.4837106]
[1773346700717,0.49368661,2067.1,2066.5,0.50111451]
[1773346701139,0.49368661,2067.1,2066.6,1.20971644]
[1773346701336,0.0008,2067.2,2066.7,0.4837106]
[1773346701527,0.49448661,2067.2,2066.7,0.4837106]
[1773346701729,1.70386421,2067.2,2066.7,0.4837106]
[1773346701955,0.49368661,2067.1,2066.5,0.4837106]
[1773346702257,0.51108814,2067.1,2066.5,0.4837106]
[1773346703025,1.20948234,2067.0,2066.6,1.20971644]
[1773346703235,1.70316895,2067.0,2066.6,1.20971644]
[1773346703641,1.70316895,2067.0,2066.5,1.69345072]
[1773346704749,0.49368661,2066.9,2066.5,1.69345072]
[1773346706045,0.51108814,2067.1,2066.6,0.4837106]
[1773346706243,0.0008,2067.2,2066.6,0.4837106]
[1773346707445,1.2101738,2067.2,2066.6,0.4837106]
[1773346708120,0.0008,2067.2,2066.8,0.4837106]
[1773346709140,0.0008,2067.2,2066.8,0.4847106]
[1773346709532,0.002,2067.0,2066.8,0.4847106]
[1773346709848,0.0008,2067.2,2066.9,0.4837106]
[1773346710050,0.0028,2067.2,2066.9,0.4837106]
[1773346710222,0.0028,2067.2,2067.0,0.4837106]
[1773346711851,1.7049403,2067.4,2067.0,0.4837106]
[1773346712352,1.7049403,2067.4,2066.8,0.001]
[1773346712353,0.49368661,2067.3,2066.8,0.001]
[1773346712549,0.49368661,2067.3,2066.8,0.4847106]
[1773346714657,0.49368661,2067.3,2067.0,0.4837106]
[1773346716930,1.70300547,2067.3,2067.0,0.4837106]
[1773346717755,0.49368661,2067.3,2067.0,0.4837106]
[1773346718065,0.002,2067.4,2067.1,0.4837106]
[1773346718239,1.21125973,2067.4,2067.1,0.4837106]
[1773346718563,1.21124926,2067.4,2067.1,0.4837106]
[1773346718751,1.70493587,2067.4,2067.1,0.4837106]
[1773346719961,1.70493789,2067.4,2067.1,0.4837106]
[1773346721463,0.49568661,2067.4,2067.1,0.4837106]
[1773346721764,4.59766558,2067.4,2067.1,0.4837106]
[1773346721970,1.70494,2067.4,2067.1,0.4837106]
[1773346724233,0.002,2067.2,2067.1,0.4837106]
[1773346725270,0.46481609,2067.5,2067.2,0.47338543]
[1773346725439,0.46281609,2067.4,2067.1,1.68280926]